bitfinex-derivatives/quotes_SOLF0:USTF0_20250907
["timestamp","ask_amount","ask_price","bid_price","bid_amount"]
[1757251469275,0.03222081,203.23,203.22,6.48383745]
[1757251469578,0.03222081,203.23,203.22,126.06383745]
[1757251470379,0.03222081,203.23,203.22,6.48383745]
[1757251470572,0.03222081,203.23,203.22,126.06383745]
[1757251470971,12.92852392,203.23,203.22,4.53383745]
[1757251471176,12.92852392,203.23,203.22,124.11383745]
[1757251471578,5.52852392,203.23,203.22,126.07383745]
[1757251472182,5.52852392,203.23,203.22,6.49383745]
[1757251472483,5.52852392,203.23,203.22,126.07383745]
[1757251473784,12.92852392,203.23,203.22,4.53383745]
[1757251473985,12.92852392,203.23,203.22,124.11383745]
[1757251474587,12.92852392,203.23,203.22,4.53383745]
[1757251474982,12.92852392,203.23,203.22,124.11383745]
[1757251477583,12.92852392,203.23,203.22,124.17521817]
[1757251478189,7.43222081,203.23,203.22,124.17521817]
[1757251478889,7.43222081,203.23,203.22,4.59521817]
[1757251479784,7.5,203.22,203.2,114.62]
[1757251479989,12.99485014,203.22,203.21,4.59508069]
[1757251480389,7.5,203.21,203.2,114.62]
[1757251487091,7.5,203.21,203.15,105.50642634]
[1757251487291,7.5,203.21,203.16,121.53]
[1757251487690,12.99485014,203.22,203.16,121.53]
[1757251487886,5.49485014,203.21,203.17,1.95]
[1757251488092,7.5,203.2,203.17,1.95]
[1757251490694,5.49485014,203.21,203.17,1.95]
[1757251491092,7.5,203.2,203.17,1.95]
[1757251491392,5.49485014,203.21,203.17,1.95]
[1757251491593,7.5,203.2,203.17,1.95]
[1757251491794,5.49485014,203.21,203.17,1.95]
[1757251492191,7.5,203.2,203.17,1.95]
[1757251492694,5.49485014,203.21,203.17,1.95]
[1757251493394,5.49485014,203.22,203.17,1.95]
[1757251493990,7.5,203.21,203.17,1.95]
[1757251494186,5.49485014,203.22,203.17,1.95]
[1757251494991,7.5,203.21,203.17,1.95]
[1757251495392,5.49485014,203.22,203.17,1.95]
[1757251495996,7.5,203.21,203.17,1.95]
[1757251496295,5.49485014,203.22,203.17,1.95]
[1757251496495,7.5,203.21,203.17,1.95]
[1757251496691,5.49485014,203.22,203.17,1.95]
[1757251496992,7.5,203.21,203.17,1.95]
[1757251497895,5.49485014,203.22,203.16,119.58]
[1757251498295,7.5,203.21,203.16,121.53]
[1757251498495,5.49485014,203.22,203.16,119.58]
[1757251498690,7.5,203.21,203.16,121.53]
[1757251498892,5.49485014,203.22,203.16,119.58]
[1757251499695,7.5,203.21,203.16,121.53]
[1757251500200,5.49485014,203.22,203.16,119.58]
[1757251500399,7.5,203.21,203.17,119.58]
[1757251500598,7.5,203.21,203.17,121.53]
[1757251500800,5.49485014,203.22,203.17,121.53]
[1757251501101,7.5,203.21,203.18,1.95]
[1757251501397,5.49485014,203.22,203.18,1.95]
[1757251501591,5.49485014,203.22,203.17,119.58]
[1757251501797,12.99485014,203.22,203.17,119.58]
[1757251502496,12.99485014,203.22,203.18,1.95]
[1757251502795,7.5,203.21,203.18,1.95]
[1757251504597,7.5,203.21,203.17,119.58]
[1757251504800,13.50707095,203.23,203.18,1.96]
[1757251505006,5.52707095,203.23,203.18,1.96]
[1757251505198,5.52707095,203.23,203.17,119.58]
[1757251505399,13.50707095,203.23,203.18,1.96]
[1757251505599,5.52707095,203.23,203.17,119.58]
[1757251506002,0.03222081,203.23,203.18,1.96]
[1757251506702,0.03222081,203.23,203.17,119.58]
[1757251508403,8.01222081,203.23,203.18,1.96]
[1757251509100,0.03222081,203.23,203.17,119.58]
[1757251509708,13.50707095,203.23,203.18,1.96]
[1757251510303,5.52707095,203.23,203.17,119.58]
[1757251511109,13.50707095,203.23,203.18,1.96]
[1757251511608,5.52707095,203.23,203.17,119.58]
[1757251511809,13.50707095,203.23,203.18,1.96]
[1757251512511,5.52707095,203.23,203.17,119.58]
[1757251512710,13.50707095,203.23,203.18,1.96]
[1757251513510,5.52707095,203.23,203.17,119.58]
[1757251513715,13.50707095,203.23,203.18,1.96]
[1757251513914,7.98,203.22,203.17,121.54]
[1757251514215,7.98,203.21,203.18,1.96]
[1757251516518,7.98,203.21,203.19,119.54]
[1757251517307,7.98,203.21,203.19,121.5]
[1757251522020,13.47485014,203.22,203.2,1.96]
[1757251523422,7.98,203.21,203.19,121.5]
[1757251527324,7.98,203.21,203.19,1.96]
[1757251530722,5.49485014,203.22,203.19,1.96]
[1757251531720,5.49485014,203.22,203.18,115.42]
[1757251532125,5.49485014,203.22,203.19,1.96]
[1757251532625,13.47485014,203.22,203.18,115.42]
[1757251532825,13.47485014,203.22,203.19,1.96]
[1757251533018,13.47485014,203.22,203.18,115.42]
[1757251533224,13.47485014,203.22,203.19,1.96]
[1757251535131,8.18,203.21,203.19,1.96]
[1757251541133,13.67485014,203.21,203.19,1.96]
[1757251543238,8.18,203.2,203.19,1.96]
[1757251544639,8.18,203.2,203.18,117.38]
[1757251554448,8.18,203.2,203.18,115.42]
[1757251554748,8.18,203.2,203.19,1.96]
[1757251554946,13.67485014,203.21,203.19,1.96]
[1757251555948,13.67485014,203.21,203.2,4.40920424]
[1757251561550,13.67485014,203.21,203.2,4.40999518]
[1757251564260,5.52707095,203.23,203.2,6.36999518]
[1757251564460,0.03222081,203.23,203.22,1.96]
[1757251564654,0.03222081,203.23,203.22,125.82999518]
[1757251564956,0.03222081,203.23,203.22,130.2323472]
[1757251565957,0.03222081,203.23,203.22,121.42]
[1757251567465,0.03222081,203.23,203.22,1.96]
[1757251567762,0.03222081,203.23,203.22,38.04]
[1757251570464,0.03222081,203.23,203.22,1.96]
[1757251570763,0.03222081,203.23,203.22,73.88]
[1757251593883,7.41,203.31,203.23,1.93]
[1757251594380,12.90485014,203.34,203.25,1.93]
[1757251594875,7.41,203.34,203.25,1.93]
[1757251595076,7.41,203.34,203.27,1.91]
[1757251595477,7.41,203.34,203.28,115.14]
[1757251595678,7.41,203.34,203.29,1.91]
[1757251596282,13.64485014,203.37,203.31,1.91]
[1757251596472,8.15,203.37,203.32,6.37731952]
[1757251596780,5.49485014,203.38,203.33,6.37731952]
[1757251596977,5.49485014,203.38,203.33,1.91]
[1757251597379,8.15,203.37,203.33,1.91]
[1757251597680,5.49485014,203.38,203.33,1.91]
[1757251598074,8.15,203.37,203.33,1.91]
[1757251598272,8.15,203.38,203.33,1.91]
[1757251600377,8.15,203.38,203.29,1.91]
[1757251600671,8.15,203.38,203.31,1.91]
[1757251600872,8.15,203.39,203.33,1.91]
[1757251601077,5.49485014,203.4,203.34,4.28868957]
[1757251601275,8.15,203.39,203.33,1.91]
[1757251601480,8.15,203.39,203.34,4.28775461]
[1757251601684,8.15,203.39,203.33,1.91]
[1757251601884,8.15,203.39,203.34,4.46113035]
[1757251602084,13.64485014,203.39,203.32,121.28]
[1757251602382,8.15,203.38,203.33,4.28776155]
[1757251602582,8.15,203.38,203.32,121.28]
[1757251602782,8.15,203.38,203.33,4.28776157]
[1757251602984,5.49485014,203.39,203.3,123.15]
[1757251603174,8.15,203.38,203.31,8.74926659]
[1757251603378,8.15,203.38,203.32,4.28788092]
[1757251603580,8.15,203.38,203.3,123.15]
[1757251603780,8.15,203.38,203.31,8.74931607]
[1757251603987,8.15,203.38,203.32,4.28790517]
[1757251604184,8.15,203.38,203.3,123.15]
[1757251604385,13.64485014,203.38,203.31,8.74966346]
[1757251604687,13.64485014,203.38,203.32,4.28807542]
[1757251604880,5.49485014,203.38,203.3,123.15]
[1757251605085,8.15,203.37,203.31,8.74966346]
[1757251605286,8.15,203.37,203.32,4.28807542]
[1757251605586,5.49485014,203.39,203.3,123.15]
[1757251605587,8.15,203.38,203.3,123.15]
[1757251605786,8.15,203.38,203.32,1.91]
[1757251606186,13.64485014,203.38,203.32,1.91]
[1757251619201,13.64485014,203.38,203.33,4.29031059]
[1757251619503,13.64485014,203.38,203.32,1.91]
[1757251619695,13.64485014,203.38,203.33,4.29031059]
[1757251619895,13.64485014,203.38,203.32,1.91]
[1757251620097,13.64485014,203.38,203.33,4.29031059]
[1757251620300,13.64485014,203.38,203.32,1.91]
[1757251620504,13.64485014,203.38,203.33,4.29063879]
[1757251620798,8.15,203.37,203.28,1.91]
[1757251621001,5.49485014,203.38,203.3,122.71]
[1757251621201,8.15,203.37,203.31,8.77104595]
[1757251621389,8.15,203.37,203.32,8.77104595]
[1757251621589,8.15,203.37,203.33,4.29063879]
[1757251621800,8.15,203.37,203.3,1.91]
[1757251622098,8.15,203.37,203.31,8.77201827]
[1757251622298,5.49485014,203.38,203.32,10.68201827]
[1757251622500,8.15,203.37,203.33,4.29111443]
[1757251622700,8.15,203.37,203.32,1.91]
[1757251622894,8.15,203.37,203.33,4.29166932]
[1757251623094,8.15,203.37,203.32,1.91]
[1757251623298,8.15,203.37,203.33,4.29178044]
[1757251623498,13.64485014,203.37,203.24,4.4274]
[1757251623798,176.15633402,203.46,203.26,1.91]
[1757251623799,5.49485014,203.35,203.26,1.91]
[1757251624100,13.64485014,203.33,203.27,8.77450929]
[1757251624298,13.64485014,203.33,203.28,8.77450929]
[1757251624500,13.64485014,203.33,203.26,1.91]
[1757251624699,13.64485014,203.33,203.27,8.7766241]
[1757251624899,13.64485014,203.33,203.28,8.7766241]
[1757251625099,13.64485014,203.33,203.26,1.91]
[1757251625299,13.64485014,203.33,203.27,8.77742114]
[1757251625499,13.64485014,203.33,203.28,8.77742114]
[1757251625689,13.64485014,203.33,203.29,4.29375728]
[1757251625891,13.64485014,203.33,203.26,1.91]
[1757251626094,13.64485014,203.33,203.27,8.77741996]
[1757251626292,13.64485014,203.33,203.28,8.77741996]
[1757251626604,13.64485014,203.33,203.29,4.2937567]
[1757251626806,13.64485014,203.33,203.26,1.91]
[1757251627103,13.64485014,203.33,203.27,8.7782483]
[1757251627406,13.64485014,203.33,203.28,8.7782483]
[1757251627607,13.64485014,203.33,203.29,4.29416191]
[1757251627809,13.64485014,203.33,203.26,1.91]
[1757251628110,13.64485014,203.33,203.27,8.78052428]
[1757251628304,13.64485014,203.33,203.28,8.78052428]
[1757251628509,13.64485014,203.33,203.29,4.29594264]
[1757251628712,7.46,203.32,203.24,66.18]
[1757251629008,7.46,203.31,203.25,10.70157328]
[1757251629210,5.49485014,203.32,203.26,8.78157328]
[1757251629509,5.49485014,203.32,203.27,8.78157328]
[1757251629712,7.46,203.31,203.28,4.29645586]
[1757251629903,7.46,203.31,203.27,1.92]
[1757251629904,5.49485014,203.32,203.27,1.92]
[1757251630102,5.49485014,203.32,203.28,4.29678341]
[1757251630308,7.46,203.31,203.27,1.92]
[1757251630611,5.49485014,203.32,203.28,4.29705568]
[1757251630807,5.49485014,203.32,203.27,1.92]
[1757251631111,7.46,203.31,203.28,4.29705568]
[1757251631308,5.49485014,203.32,203.27,1.92]
[1757251631504,5.49485014,203.32,203.28,4.29723897]
[1757251631809,5.49485014,203.32,203.27,1.92]
[1757251632009,5.49485014,203.32,203.28,4.29723897]
[1757251632212,7.46,203.31,203.27,1.92]
[1757251632414,5.49485014,203.32,203.28,4.29742731]
[1757251632610,5.49485014,203.32,203.27,1.92]
[1757251632812,5.49485014,203.32,203.28,4.29742732]
[1757251633012,7.46,203.31,203.27,1.92]
[1757251633212,5.49485014,203.32,203.28,4.29742732]
[1757251633412,5.49485014,203.32,203.27,1.92]
[1757251633612,5.49485014,203.32,203.28,4.29762091]
[1757251633813,5.49485014,203.32,203.27,1.92]
[1757251634015,7.46,203.31,203.28,4.29762089]
[1757251634211,5.49485014,203.31,203.27,1.92]
[1757251634406,5.49485014,203.31,203.28,4.29781746]
[1757251634611,7.46,203.3,203.27,1.92]
[1757251634813,5.49485014,203.31,203.28,4.29781746]
[1757251635012,5.49485014,203.31,203.27,1.92]
[1757251635213,7.46,203.3,203.28,4.29781746]
[1757251635416,5.49485014,203.31,203.27,1.92]
[1757251635715,5.49485014,203.31,203.28,4.29801722]
[1757251635911,7.46,203.3,203.27,1.92]
[1757251636111,5.49485014,203.31,203.28,4.29801701]
[1757251636317,7.46,203.3,203.27,1.92]
[1757251636510,5.49485014,203.31,203.28,4.29821977]
[1757251636715,5.49485014,203.31,203.27,1.92]
[1757251636916,7.46,203.3,203.28,4.29821977]
[1757251637117,5.49485014,203.31,203.27,1.92]
[1757251637317,5.49485014,203.31,203.28,4.29842345]
[1757251637511,5.49485014,203.31,203.27,1.92]
[1757251637712,7.46,203.3,203.28,4.29842345]
[1757251638010,5.49485014,203.31,203.27,1.92]
[1757251638208,5.49485014,203.31,203.28,4.29842345]
[1757251638407,7.46,203.3,203.27,1.92]
[1757251638608,5.49485014,203.31,203.28,4.29863262]
[1757251638818,5.49485014,203.31,203.27,1.92]
[1757251639014,7.46,203.3,203.28,4.29863262]
[1757251639318,5.49485014,203.31,203.27,1.92]
[1757251639514,7.46,203.3,203.28,4.29834287]
[1757251639715,5.49485014,203.31,203.27,1.92]
[1757251639915,5.49485014,203.31,203.28,4.29834287]
[1757251640118,5.49485014,203.31,203.27,1.92]
[1757251640319,5.49485014,203.31,203.28,4.29799373]
[1757251640519,7.46,203.3,203.27,1.92]
[1757251640711,7.46,203.3,203.28,4.29799315]
[1757251640911,5.49485014,203.31,203.27,1.92]
[1757251641121,7.46,203.3,203.28,4.29799315]
[1757251641324,5.49485014,203.32,203.27,1.92]
[1757251641614,5.49485014,203.32,203.28,4.29769013]
[1757251641815,7.46,203.31,203.27,1.92]
[1757251642024,7.46,203.31,203.28,4.29769071]
[1757251642222,7.46,203.31,203.27,1.92]
[1757251642419,5.49485014,203.32,203.28,4.2975519]
[1757251642623,5.49485014,203.32,203.27,1.92]
[1757251642919,5.49485014,203.32,203.28,4.2975519]
[1757251643119,7.46,203.31,203.27,1.92]
[1757251643319,5.49485014,203.32,203.28,4.29745877]
[1757251643522,5.49485014,203.32,203.27,1.92]
[1757251643723,5.49485014,203.32,203.28,4.2974582]
[1757251643920,7.46,203.31,203.27,1.92]
[1757251644220,5.49485014,203.32,203.28,4.2974582]
[1757251644523,5.49485014,203.32,203.27,1.92]
[1757251644723,5.49485014,203.32,203.28,4.29741149]
[1757251645027,5.49485014,203.32,203.27,1.92]
[1757251645216,7.46,203.31,203.28,4.29741149]
[1757251645418,5.49485014,203.32,203.27,1.92]
[1757251645618,7.46,203.31,203.28,4.29740969]
[1757251645819,7.46,203.31,203.27,1.92]
[1757251646021,5.49485014,203.32,203.28,4.29740969]
[1757251646220,5.49485014,203.32,203.27,1.92]
[1757251646522,5.49485014,203.32,203.28,4.29763074]
[1757251646824,5.49485014,203.32,203.27,1.92]
[1757251647027,7.46,203.31,203.28,4.29763016]
[1757251647228,5.49485014,203.31,203.27,1.92]
[1757251647421,5.49485014,203.31,203.28,4.2977296]
[1757251647724,5.49485014,203.31,203.27,1.92]
[1757251647918,7.46,203.3,203.28,4.2977296]
[1757251648121,7.46,203.3,203.27,1.92]
[1757251648427,7.46,203.3,203.28,4.29778758]
[1757251648727,5.49485014,203.31,203.27,1.92]
[1757251648923,7.46,203.3,203.28,4.29778758]
[1757251649227,7.46,203.3,203.27,1.92]
[1757251649429,5.49485014,203.31,203.28,4.29788747]
[1757251649629,7.46,203.3,203.27,1.92]
[1757251649824,7.46,203.3,203.28,4.29788689]
[1757251650031,7.46,203.3,203.27,1.92]
[1757251650233,5.49485014,203.31,203.28,4.29788689]
[1757251650422,5.49485014,203.31,203.27,1.92]
[1757251650626,5.49485014,203.31,203.28,4.29802663]
[1757251650826,7.46,203.3,203.27,1.92]
[1757251651030,5.49485014,203.31,203.28,4.29802663]
[1757251651231,5.49485014,203.31,203.27,1.92]
[1757251651430,5.49485014,203.31,203.28,4.29820664]
[1757251651623,5.49485014,203.31,203.27,1.92]
[1757251651827,5.49485014,203.31,203.28,4.29820722]
[1757251652028,5.49485014,203.31,203.27,1.92]
[1757251652232,7.46,203.3,203.28,4.29820722]
[1757251652432,7.46,203.3,203.27,1.92]
[1757251652633,7.46,203.3,203.28,4.29842894]
[1757251652932,7.46,203.3,203.27,1.92]
[1757251653131,5.49485014,203.31,203.28,4.29842894]
[1757251653332,5.49485014,203.31,203.27,1.92]
[1757251653529,7.46,203.3,203.28,4.29869905]
[1757251653729,7.46,203.3,203.27,1.92]
[1757251654035,7.46,203.3,203.28,4.29869905]
[1757251654235,7.46,203.3,203.27,1.92]
[1757251654434,7.46,203.3,203.28,4.29901458]
[1757251654633,7.46,203.3,203.24,66.18]
[1757251654831,7.46,203.3,203.25,8.77101586]
[1757251655026,7.46,203.3,203.27,1.93]
[1757251655231,7.46,203.3,203.24,66.18]
[1757251655232,5.49485014,203.33,203.28,8.77108331]
[1757251655537,8.15,203.32,203.3,1.93]
[1757251655736,8.15,203.32,203.31,4.67819182]
[1757251656340,5.49485014,203.33,203.32,1.93]
[1757251656636,13.64485014,203.35,203.33,1.93]
[1757251656937,13.64485014,203.35,203.34,4.67819182]
[1757251659337,5.49485014,203.36,203.34,4.67819182]
[1757251659640,5.49485014,203.37,203.36,1.93]
[1757251659840,13.64485014,203.38,203.36,6.6088271]
[1757251660036,13.64485014,203.38,203.36,1.93]
[1757251660542,13.64485014,203.38,203.25,1.93]
[1757251660843,13.64485014,203.38,203.3,1.93]
[1757251661041,13.64485014,203.38,203.31,4.67840789]
[1757251661246,13.64485014,203.38,203.33,1.93]
[1757251661537,5.49485014,203.38,203.34,4.67840789]
[1757251661731,8.15,203.36,203.35,4.67840789]
[1757251664543,8.15,203.36,203.35,8.96153946]
[1757251668348,8.15,203.36,203.35,4.67840789]
[1757251676257,8.15,203.36,203.35,4.67720335]
[1757251677060,8.15,203.38,203.35,6.60720335]
[1757251677262,5.49485014,203.39,203.35,1.93]
[1757251677757,8.15,203.38,203.32,1.93]
[1757251677954,5.49485014,203.39,203.33,8.95545752]
[1757251678162,8.15,203.38,203.34,10.88545752]
[1757251678456,8.15,203.38,203.35,4.67697035]
[1757251678661,8.15,203.38,203.34,1.93]
[1757251678858,8.15,203.38,203.35,4.67681719]
[1757251679060,5.49485014,203.39,203.34,1.93]
[1757251679260,5.49485014,203.39,203.35,4.67671884]
[1757251679563,8.15,203.38,203.34,1.93]
[1757251679753,5.49485014,203.39,203.35,4.67671884]
[1757251679954,8.15,203.38,203.34,1.93]
[1757251680163,5.49485014,203.39,203.35,4.67671884]
[1757251680352,5.49485014,203.39,203.34,1.93]
[1757251680557,8.15,203.38,203.35,4.67673747]
[1757251680761,8.15,203.38,203.31,88.91]
[1757251680959,8.15,203.38,203.32,8.95501161]
[1757251681156,5.49485014,203.39,203.33,8.95501161]
[1757251681356,8.15,203.38,203.34,10.88501161]
[1757251681560,5.49485014,203.39,203.35,4.67673747]
[1757251681859,8.15,203.38,203.34,1.93]
[1757251682163,8.15,203.38,203.35,4.67671936]
[1757251682462,8.15,203.38,203.34,1.93]
[1757251682658,5.49485014,203.39,203.35,4.67675753]
[1757251682860,5.49485014,203.39,203.34,1.93]
[1757251683055,5.49485014,203.39,203.35,4.67675753]
[1757251683260,5.49485014,203.39,203.34,1.93]
[1757251683461,5.49485014,203.39,203.35,4.67685045]
[1757251683664,5.49485014,203.39,203.34,1.93]
[1757251683860,8.15,203.38,203.35,4.67685045]
[1757251684061,5.49485014,203.39,203.34,1.93]
[1757251684261,8.15,203.38,203.35,4.67686307]
[1757251684465,5.49485014,203.39,203.34,1.93]
[1757251684661,8.15,203.38,203.35,4.6770005]
[1757251684862,7.85,203.38,203.34,1.93]
[1757251685164,5.49485014,203.39,203.35,4.6770005]
[1757251685358,5.49485014,203.39,203.34,1.93]
[1757251685558,7.85,203.38,203.35,4.67721086]
[1757251685765,5.49485014,203.39,203.34,1.93]
[1757251686066,5.49485014,203.39,203.35,4.67721086]
[1757251686263,5.49485014,203.39,203.34,1.93]
[1757251686464,5.49485014,203.39,203.35,4.67748139]
[1757251686664,5.49485014,203.39,203.34,1.93]
[1757251686861,7.85,203.38,203.35,4.67748139]
[1757251687066,7.85,203.38,203.34,1.93]
[1757251687269,7.85,203.38,203.35,4.67754942]
[1757251687462,5.49485014,203.39,203.34,1.93]
[1757251687662,5.49485014,203.39,203.35,4.67781214]
[1757251687860,5.49485014,203.39,203.34,1.93]
[1757251688065,7.85,203.38,203.35,4.67781214]
[1757251688369,7.85,203.38,203.34,1.93]
[1757251688563,5.49485014,203.39,203.35,4.67821042]
[1757251688763,5.49485014,203.39,203.34,1.93]
[1757251688964,5.49485014,203.39,203.35,4.67821042]
[1757251688965,7.85,203.38,203.35,4.67821042]
[1757251689163,7.85,203.38,203.36,4.67867791]
[1757251689359,7.85,203.38,203.34,1.93]
[1757251689565,5.49485014,203.38,203.35,8.96002134]
[1757251689766,5.49485014,203.36,203.29,1.92]
[1757251689961,7.85,203.34,203.3,10.88076352]
[1757251690168,7.85,203.34,203.31,8.96076352]
[1757251690368,7.85,203.34,203.32,4.67918634]
[1757251690667,7.85,203.34,203.33,4.67975789]
[1757251694663,5.49485014,203.36,203.33,8.96460026]
[1757251694869,5.49485014,203.37,203.34,10.88434043]
[1757251695066,5.49485014,203.38,203.35,8.9689674]
[1757251695269,13.34485014,203.37,203.34,1.92]
[1757251695463,13.34485014,203.37,203.35,8.97342383]
[1757251695662,5.49485014,203.37,203.34,1.92]
[1757251695867,7.85,203.36,203.35,8.97342383]
[1757251697275,13.34485014,203.36,203.35,8.97342383]
[1757251700572,13.34485014,203.36,203.35,8.98041202]
[1757251701172,7.85,203.36,203.35,8.98041202]
[1757251707183,16.09445467,203.36,203.35,1.60798492]
[1757251707476,16.09445467,203.36,203.35,5.90659824]
[1757251707678,7.85,203.36,203.35,5.90659824]
[1757251714983,7.85,203.36,203.35,4.29861332]
[1757251717889,15.75445467,203.37,203.35,6.21861332]
[1757251718090,15.75445467,203.37,203.36,4.29861332]
[1757251718489,7.51,203.37,203.36,4.29861332]
[1757251718689,7.51,203.37,203.36,4.35334417]
[1757251719085,7.51,203.37,203.36,8.9842154]
[1757251722392,7.51,203.37,203.36,8.98449522]
[1757251724996,8.24445467,203.38,203.36,10.90449522]
[1757251725199,15.75445467,203.38,203.36,1.92]
[1757251726593,15.75445467,203.38,203.33,1.92]
[1757251726800,5.50926779,203.35,203.34,10.90321985]
[1757251730214,5.50917404,203.35,203.34,10.90321985]
[1757251732511,5.50917404,203.37,203.34,10.90321985]
[1757251732712,5.50917404,203.38,203.36,1.92]
[1757251732915,5.50917404,203.38,203.32,36.94]
[1757251732916,5.50917404,203.38,203.37,10.90321985]
[1757251733218,5.50917404,203.38,203.37,8.98321985]
[1757251733414,7.51,203.38,203.37,8.98321985]
[1757251736720,13.01908102,203.38,203.37,8.98321985]
[1757251737419,7.51,203.38,203.37,8.98321985]
[1757251742224,7.51,203.38,203.37,9.00619757]
[1757251744827,13.13908102,203.39,203.37,10.92619757]
[1757251745124,5.50908102,203.39,203.38,9.00619757]
[1757251745426,13.13908102,203.39,203.38,9.00619757]
[1757251750128,13.13908102,203.39,203.38,4.62912015]
[1757251750327,13.13908102,203.39,203.38,9.01759197]
[1757251753130,7.63,203.39,203.38,9.01759197]
[1757251753330,13.13908102,203.39,203.38,9.01759197]
[1757251753733,7.63,203.39,203.38,9.01759197]
[1757251760045,13.13908102,203.39,203.38,9.01759197]
[1757251760541,7.63,203.39,203.38,9.01759197]
[1757251762139,15.87445467,203.39,203.31,1.92]
[1757251762342,5.50263833,203.36,203.32,9.01413916]
[1757251762542,5.50263833,203.36,203.3,86.62]
[1757251762543,7.63,203.35,203.33,4.39040951]
[1757251762842,7.63,203.35,203.34,4.39040951]
[1757251763442,13.13263833,203.36,203.34,6.31040951]
[1757251763639,7.63,203.36,203.35,4.39040951]
[1757251764143,5.50263833,203.37,203.35,4.39040951]
[1757251764342,5.50263833,203.37,203.36,6.31040951]
[1757251764538,13.13263833,203.38,203.36,6.31040951]
[1757251764746,13.13263833,203.38,203.37,4.39045021]
[1757251766443,7.63,203.38,203.37,4.39045021]
[1757251766841,13.13401621,203.38,203.37,4.39045021]
[1757251768344,7.63,203.38,203.37,4.39045021]
[1757251784651,7.63,203.38,203.37,8.8470241]
[1757251793962,7.63,203.38,203.37,8.83921737]
[1757251803065,15.89445467,203.39,203.38,1.92]
[1757251803264,15.89445467,203.39,203.38,10.75921737]
[1757251803471,15.89445467,203.39,203.38,8.83921737]
[1757251804279,15.89445467,203.39,203.32,1.92]
[1757251804280,7.65,203.39,203.32,1.92]
[1757251804571,7.65,203.39,203.31,220.88844811]
[1757251804572,13.16292691,203.35,203.33,10.88420573]
[1757251804772,13.16292691,203.35,203.34,4.38553023]
[1757251805170,7.65,203.35,203.34,4.38553023]
[1757251805376,15.91939037,203.35,203.34,4.38553023]
[1757251808279,7.65,203.35,203.34,4.38553023]
[1757251812178,8.26939037,203.36,203.28,19.76]
[1757251812378,5.50294879,203.33,203.3,1.93]
[1757251812580,5.50294879,203.33,203.32,1.93]
[1757251812779,5.50294879,203.33,203.32,6.30833578]
[1757251814084,12.97294879,203.34,203.32,6.30833578]
[1757251814383,12.97294879,203.34,203.33,4.37833578]
[1757251816683,5.50294879,203.34,203.33,6.30833578]
[1757251819485,5.50294879,203.35,203.33,6.30833578]
[1757251819679,5.50294879,203.35,203.34,4.37833578]
[1757251820483,5.50294879,203.35,203.34,6.30833578]
[1757251822382,5.50294879,203.36,203.35,1.93]
[1757251822572,5.50294879,203.36,203.35,6.30833578]
[1757251823785,12.97294879,203.36,203.35,6.30833578]
[1757251823980,5.50294879,203.36,203.35,6.30833578]
[1757251824176,5.50294879,203.37,203.35,6.30833578]
[1757251824383,5.50294879,203.37,203.36,4.37833578]
[1757251824986,5.50294879,203.37,203.36,6.30833578]
[1757251825983,12.97294879,203.38,203.36,4.37833578]
[1757251826183,12.97294879,203.38,203.37,4.37833578]
[1757251830480,7.47,203.41,203.26,1.93]
[1757251830685,12.97460505,203.34,203.28,1.93]
[1757251830987,5.50460505,203.34,203.3,1.93]
[1757251831285,7.47,203.33,203.31,4.37663857]
[1757251831485,7.47,203.33,203.32,4.37663857]
[1757251833683,12.97460505,203.33,203.32,4.37663857]
[1757251841089,7.47,203.33,203.32,4.37663857]
[1757251842690,7.47,203.33,203.28,1.93]
[1757251842994,12.95448371,203.31,203.29,4.37160649]